Workbook

Sheet Scoresheet
S1: √ | T1: Good
E2: Coupe de Luxembourg Powerlifting PWFL | S2: + | T2: Record
E3: Hamm-Luxembourg | S3: × | T3: NoLift
E4: 30 Juin 2024
A5: Gr. | B5: Lot | C5: Last Name | D5: First Name | E5: Team | F5: Birth Year | G5: Division | H5: Body Wt | I5: WT Class | J5: SQ-1 | L5: SQ-2 | N5: SQ-3 | P5: Best SQ | Q5: BP-1 | S5: BP-2 | U5: BP-3 | W5: Best BP | X5: DL-1 | Z5: DL-2 | AB5: DL-3 | AD5: Best DL | AE5: RESULT | AF5: IPF GL Pts. | AG5: IPF GL Coeff. | AH5: Place
A6: 1 | B6: Op | C6: Sacré | D6: Margault | E6: SC Hamm | F6: 1993 | G6: F-CL-PL | H6: 67.3 | I6: =IF(H6="","",VLOOKUP(H6,WeightClasses!$A$2:$E$18,IF(LEFT(G6,1)="F",IF(YEAR(TODAY())-F6<24,4,2),IF(YEAR(TODAY())-F6<24,5,3)),TRUE)) -> 69 | J6: √ | K6: 122.5 | L6: √ | M6: 130 | N6: × | O6: 135.5 | P6: =IF(OR(K6<>0,M6<>0,O6<>0),MAX(IF(OR(J6=$S$1,J6=$S$2),K6,0),IF(OR(L6=$S$1,L6=$S$2),M6,0),IF(OR(N6=$S$1,N6=$S$2),O6,0)),"") -> 130 | Q6: √ | R6: 67.5 | S6: √ | T6: 72.5 | U6: √ | V6: 75 | W6: =IF(OR(R6<>0,T6<>0,V6<>0),MAX(IF(OR(Q6=$S$1,Q6=$S$2),R6,0),IF(OR(S6=$S$1,S6=$S$2),T6,0),IF(OR(U6=$S$1,U6=$S$2),V6,0)),"") -> 75 | X6: √ | Y6: 117.5 | Z6: √ | AA6: 127.5 | AB6: √ | AC6: 132.5 | AD6: =IF(OR(Y6<>0,AA6<>0,AC6<>0),MAX(IF(OR(X6=$S$1,X6=$S$2),Y6,0),IF(OR(Z6=$S$1,Z6=$S$2),AA6,0),IF(OR(AB6=$S$1,AB6=$S$2),AC6,0)),"") -> 132.5 | AE6: =IF(OR(P6<>"",W6<>"",AD6<>""),IF(AU6,"DSQ",IF(AND(RIGHT(G6,2)="PL"),IF(P6="",0,P6)+IF(W6="",0,W6)+IF(AD6="",0,AD6),IF(AND(RIGHT(G6,2)="BP",W6<>0),W6,IF(AND(RIGHT(G6,2)="DL",AD6<>0),AD6,IF(AND(RIGHT(G6,2)="SQ",P6<>0),P6,0))))),"") -> 337.5 | AF6: =IF(AND(AE6<>"",ISNUMBER(AE6)),AG6*AE6,"") -> 70.9185375 | AG6: =IF(OR(H6="",H6=0),0, ROUND(100/(VLOOKUP($G6,'IPF GL Formula'!$A$4:$F$19,3,FALSE)-VLOOKUP($G6,'IPF GL Formula'!$A$4:$F$19,4,FALSE)*EXP(-VLOOKUP($G6,'IPF GL Formula'!$A$4:$F$19,5,FALSE)*H6)),6)) -> 0.210129 | AI6: =J6=$S$3 -> FALSE | AJ6: =L6=$S$3 -> FALSE | AK6: =N6=$S$3 -> TRUE | AL6: =Q6=$S$3 -> FALSE | AM6: =S6=$S$3 -> FALSE | AN6: =U6=$S$3 -> FALSE | AO6: =X6=$S$3 -> FALSE | AP6: =Z6=$S$3 -> FALSE | AQ6: =AB6=$S$3 -> FALSE | AR6: =AND(AI6,AJ6,AK6) -> FALSE | AS6: =AND(AL6,AM6,AN6) -> FALSE | AT6: =AND(AO6,AP6,AQ6) -> FALSE | AU6: =OR(AR6,AS6,AT6) -> FALSE
A7: 1 | B7: Jr | C7: Alexandreas | D7: Marina | E7: SC Hamm | F7: 2000 | G7: F-CL-PL | H7: 64.32 | I7: =IF(H7="","",VLOOKUP(H7,WeightClasses!$A$2:$E$18,IF(LEFT(G7,1)="F",IF(YEAR(TODAY())-F7<24,4,2),IF(YEAR(TODAY())-F7<24,5,3)),TRUE)) -> 69 | J7: √ | K7: 105 | L7: × | M7: 110 | N7: × | O7: 110 | P7: =IF(OR(K7<>0,M7<>0,O7<>0),MAX(IF(OR(J7=$S$1,J7=$S$2),K7,0),IF(OR(L7=$S$1,L7=$S$2),M7,0),IF(OR(N7=$S$1,N7=$S$2),O7,0)),"") -> 105 | Q7: √ | R7: 57.5 | S7: √ | T7: 62.5 | U7: √ | V7: 65 | W7: =IF(OR(R7<>0,T7<>0,V7<>0),MAX(IF(OR(Q7=$S$1,Q7=$S$2),R7,0),IF(OR(S7=$S$1,S7=$S$2),T7,0),IF(OR(U7=$S$1,U7=$S$2),V7,0)),"") -> 65 | X7: √ | Y7: 112.5 | Z7: √ | AA7: 117.5 | AB7: × | AC7: 120 | AD7: =IF(OR(Y7<>0,AA7<>0,AC7<>0),MAX(IF(OR(X7=$S$1,X7=$S$2),Y7,0),IF(OR(Z7=$S$1,Z7=$S$2),AA7,0),IF(OR(AB7=$S$1,AB7=$S$2),AC7,0)),"") -> 117.5 | AE7: =IF(OR(P7<>"",W7<>"",AD7<>""),IF(AU7,"DSQ",IF(AND(RIGHT(G7,2)="PL"),IF(P7="",0,P7)+IF(W7="",0,W7)+IF(AD7="",0,AD7),IF(AND(RIGHT(G7,2)="BP",W7<>0),W7,IF(AND(RIGHT(G7,2)="DL",AD7<>0),AD7,IF(AND(RIGHT(G7,2)="SQ",P7<>0),P7,0))))),"") -> 287.5 | AF7: 62.0793 | AG7: =IF(OR(H7="",H7=0),0, ROUND(100/(VLOOKUP($G7,'IPF GL Formula'!$A$4:$F$19,3,FALSE)-VLOOKUP($G7,'IPF GL Formula'!$A$4:$F$19,4,FALSE)*EXP(-VLOOKUP($G7,'IPF GL Formula'!$A$4:$F$19,5,FALSE)*H7)),6)) -> 0.215928 | AI7: =J7=$S$3 -> FALSE | AJ7: =L7=$S$3 -> TRUE | AK7: =N7=$S$3 -> TRUE | AL7: =Q7=$S$3 -> FALSE | AM7: =S7=$S$3 -> FALSE | AN7: =U7=$S$3 -> FALSE | AO7: =X7=$S$3 -> FALSE | AP7: =Z7=$S$3 -> FALSE | AQ7: =AB7=$S$3 -> TRUE | AR7: =AND(AI7,AJ7,AK7) -> FALSE | AS7: =AND(AL7,AM7,AN7) -> FALSE | AT7: =AND(AO7,AP7,AQ7) -> FALSE | AU7: =OR(AR7,AS7,AT7) -> FALSE
A8: 1 | B8: Jr | C8: Weydert | D8: Emma | E8: SC Hamm | F8: 2004 | G8: F-CL-PL | H8: 57.62 | I8: =IF(H8="","",VLOOKUP(H8,WeightClasses!$A$2:$E$18,IF(LEFT(G8,1)="F",IF(YEAR(TODAY())-F8<24,4,2),IF(YEAR(TODAY())-F8<24,5,3)),TRUE)) -> 63 | J8: √ | K8: 105 | L8: √ | M8: 112.5 | N8: + | O8: 118 | P8: =IF(OR(K8<>0,M8<>0,O8<>0),MAX(IF(OR(J8=$S$1,J8=$S$2),K8,0),IF(OR(L8=$S$1,L8=$S$2),M8,0),IF(OR(N8=$S$1,N8=$S$2),O8,0)),"") -> 118 | Q8: √ | R8: 57.5 | S8: + | T8: 61 | U8: × | V8: 63.5 | W8: =IF(OR(R8<>0,T8<>0,V8<>0),MAX(IF(OR(Q8=$S$1,Q8=$S$2),R8,0),IF(OR(S8=$S$1,S8=$S$2),T8,0),IF(OR(U8=$S$1,U8=$S$2),V8,0)),"") -> 61 | X8: √ | Y8: 135 | Z8: + | AA8: 145.5 | AB8: + | AC8: 150 | AD8: =IF(OR(Y8<>0,AA8<>0,AC8<>0),MAX(IF(OR(X8=$S$1,X8=$S$2),Y8,0),IF(OR(Z8=$S$1,Z8=$S$2),AA8,0),IF(OR(AB8=$S$1,AB8=$S$2),AC8,0)),"") -> 150 | AE8: =IF(OR(P8<>"",W8<>"",AD8<>""),IF(AU8,"DSQ",IF(AND(RIGHT(G8,2)="PL"),IF(P8="",0,P8)+IF(W8="",0,W8)+IF(AD8="",0,AD8),IF(AND(RIGHT(G8,2)="BP",W8<>0),W8,IF(AND(RIGHT(G8,2)="DL",AD8<>0),AD8,IF(AND(RIGHT(G8,2)="SQ",P8<>0),P8,0))))),"") -> 329 | AF8: 76.553694 | AG8: =IF(OR(H8="",H8=0),0, ROUND(100/(VLOOKUP($G8,'IPF GL Formula'!$A$4:$F$19,3,FALSE)-VLOOKUP($G8,'IPF GL Formula'!$A$4:$F$19,4,FALSE)*EXP(-VLOOKUP($G8,'IPF GL Formula'!$A$4:$F$19,5,FALSE)*H8)),6)) -> 0.232686 | AI8: =J8=$S$3 -> FALSE | AJ8: =L8=$S$3 -> FALSE | AK8: =N8=$S$3 -> FALSE | AL8: =Q8=$S$3 -> FALSE | AM8: =S8=$S$3 -> FALSE | AN8: =U8=$S$3 -> TRUE | AO8: =X8=$S$3 -> FALSE | AP8: =Z8=$S$3 -> FALSE | AQ8: =AB8=$S$3 -> FALSE | AR8: =AND(AI8,AJ8,AK8) -> FALSE | AS8: =AND(AL8,AM8,AN8) -> FALSE | AT8: =AND(AO8,AP8,AQ8) -> FALSE | AU8: =OR(AR8,AS8,AT8) -> FALSE
A9: 1 | B9: Op | C9: Bennaoui | D9: Najia | E9: SC Hamm | F9: 1992 | G9: F-CL-PL | H9: 85 | I9: =IF(H9="","",VLOOKUP(H9,WeightClasses!$A$2:$E$18,IF(LEFT(G9,1)="F",IF(YEAR(TODAY())-F9<24,4,2),IF(YEAR(TODAY())-F9<24,5,3)),TRUE)) -> 84+ | J9: √ | K9: 147.5 | L9: + | M9: 155.5 | N9: + | O9: 158.5 | P9: 158.5 | Q9: √ | R9: 80 | S9: × | T9: 85 | U9: × | V9: 85 | W9: 80 | X9: √ | Y9: 150 | Z9: √ | AA9: 160 | AB9: × | AC9: 172.5 | AD9: 160 | AE9: 398.5 | AF9: 74.9128195 | AG9: =IF(OR(H9="",H9=0),0, ROUND(100/(VLOOKUP($G9,'IPF GL Formula'!$A$4:$F$19,3,FALSE)-VLOOKUP($G9,'IPF GL Formula'!$A$4:$F$19,4,FALSE)*EXP(-VLOOKUP($G9,'IPF GL Formula'!$A$4:$F$19,5,FALSE)*H9)),6)) -> 0.187987 | AI9: FALSE | AJ9: FALSE | AK9: FALSE | AL9: FALSE | AM9: TRUE | AN9: TRUE | AO9: FALSE | AP9: FALSE | AQ9: TRUE | AR9: FALSE | AS9: FALSE | AT9: FALSE | AU9: FALSE
A10: 1 | B10: Op | C10: Giacomini | D10: Laura | E10: SC Hamm | F10: 1990 | G10: F-CL-PL | H10: 84.85 | I10: =IF(H10="","",VLOOKUP(H10,WeightClasses!$A$2:$E$18,IF(LEFT(G10,1)="F",IF(YEAR(TODAY())-F10<24,4,2),IF(YEAR(TODAY())-F10<24,5,3)),TRUE)) -> 84+ | J10: √ | K10: 117.5 | L10: √ | M10: 122.5 | N10: √ | O10: 125 | P10: 125 | Q10: √ | R10: 57.5 | S10: × | T10: 62.5 | U10: × | V10: 62.5 | W10: 57.5 | X10: √ | Y10: 130 | Z10: √ | AA10: 137.5 | AB10: √ | AC10: 142.5 | AD10: 142.5 | AE10: 325 | AF10: 61.137375 | AG10: =IF(OR(H10="",H10=0),0, ROUND(100/(VLOOKUP($G10,'IPF GL Formula'!$A$4:$F$19,3,FALSE)-VLOOKUP($G10,'IPF GL Formula'!$A$4:$F$19,4,FALSE)*EXP(-VLOOKUP($G10,'IPF GL Formula'!$A$4:$F$19,5,FALSE)*H10)),6)) -> 0.188115 | AI10: FALSE | AJ10: FALSE | AK10: FALSE | AL10: FALSE | AM10: TRUE | AN10: TRUE | AO10: FALSE | AP10: FALSE | AQ10: FALSE | AR10: FALSE | AS10: FALSE | AT10: FALSE | AU10: FALSE
I11: =IF(H11="","",VLOOKUP(H11,WeightClasses!$A$2:$E$18,IF(LEFT(G11,1)="F",IF(YEAR(TODAY())-F11<24,4,2),IF(YEAR(TODAY())-F11<24,5,3)),TRUE)) ->  | P11: =IF(OR(K11<>0,M11<>0,O11<>0),MAX(IF(OR(J11=$S$1,J11=$S$2),K11,0),IF(OR(L11=$S$1,L11=$S$2),M11,0),IF(OR(N11=$S$1,N11=$S$2),O11,0)),"") ->  | W11: =IF(OR(R11<>0,T11<>0,V11<>0),MAX(IF(OR(Q11=$S$1,Q11=$S$2),R11,0),IF(OR(S11=$S$1,S11=$S$2),T11,0),IF(OR(U11=$S$1,U11=$S$2),V11,0)),"") ->  | AD11: =IF(OR(Y11<>0,AA11<>0,AC11<>0),MAX(IF(OR(X11=$S$1,X11=$S$2),Y11,0),IF(OR(Z11=$S$1,Z11=$S$2),AA11,0),IF(OR(AB11=$S$1,AB11=$S$2),AC11,0)),"") ->  | AE11: =IF(OR(P11<>"",W11<>"",AD11<>""),IF(AU11,"DSQ",IF(AND(RIGHT(G11,2)="PL"),IF(P11="",0,P11)+IF(W11="",0,W11)+IF(AD11="",0,AD11),IF(AND(RIGHT(G11,2)="BP",W11<>0),W11,IF(AND(RIGHT(G11,2)="DL",AD11<>0),AD11,IF(AND(RIGHT(G11,2)="SQ",P11<>0),P11,0))))),"") ->  | AF11: =SUM(AF6:AF9) -> 284.464351 | AG11: =IF(OR(H11="",H11=0),0, ROUND(100/(VLOOKUP($G11,'IPF GL Formula'!$A$4:$F$19,3,FALSE)-VLOOKUP($G11,'IPF GL Formula'!$A$4:$F$19,4,FALSE)*EXP(-VLOOKUP($G11,'IPF GL Formula'!$A$4:$F$19,5,FALSE)*H11)),6)) -> 0 | AH11: 2 | AI11: =J11=$S$3 -> FALSE | AJ11: =L11=$S$3 -> FALSE | AK11: =N11=$S$3 -> FALSE | AL11: =Q11=$S$3 -> FALSE | AM11: =S11=$S$3 -> FALSE | AN11: =U11=$S$3 -> FALSE | AO11: =X11=$S$3 -> FALSE | AP11: =Z11=$S$3 -> FALSE | AQ11: =AB11=$S$3 -> FALSE | AR11: =AND(AI11,AJ11,AK11) -> FALSE | AS11: =AND(AL11,AM11,AN11) -> FALSE | AT11: =AND(AO11,AP11,AQ11) -> FALSE | AU11: =OR(AR11,AS11,AT11) -> FALSE
A12: 1 | B12: Op | C12: Castro | D12: Emma | E12: Silverbacks | F12: 1999 | G12: F-CL-PL | H12: 61.81 | I12: =IF(H12="","",VLOOKUP(H12,WeightClasses!$A$2:$E$18,IF(LEFT(G12,1)="F",IF(YEAR(TODAY())-F12<24,4,2),IF(YEAR(TODAY())-F12<24,5,3)),TRUE)) -> 63 | J12: √ | K12: 95 | L12: √ | M12: 100 | N12: √ | O12: 102.5 | P12: 102.5 | Q12: √ | R12: 45 | S12: √ | T12: 50 | U12: × | V12: 52.5 | W12: 50 | X12: √ | Y12: 115 | Z12: √ | AA12: 120 | AB12: √ | AC12: 125 | AD12: 125 | AE12: 277.5 | AF12: 61.4737425 | AG12: =IF(OR(H12="",H12=0),0, ROUND(100/(VLOOKUP($G12,'IPF GL Formula'!$A$4:$F$19,3,FALSE)-VLOOKUP($G12,'IPF GL Formula'!$A$4:$F$19,4,FALSE)*EXP(-VLOOKUP($G12,'IPF GL Formula'!$A$4:$F$19,5,FALSE)*H12)),6)) -> 0.221527 | AI12: FALSE | AJ12: FALSE | AK12: FALSE | AL12: FALSE | AM12: FALSE | AN12: TRUE | AO12: FALSE | AP12: FALSE | AQ12: FALSE | AR12: FALSE | AS12: FALSE | AT12: FALSE | AU12: FALSE
A13: 1 | B13: Op | C13: Baustert | D13: Nadia | E13: Silverbacks | F13: 1999 | G13: F-CL-PL | H13: 61.61 | I13: =IF(H13="","",VLOOKUP(H13,WeightClasses!$A$2:$E$18,IF(LEFT(G13,1)="F",IF(YEAR(TODAY())-F13<24,4,2),IF(YEAR(TODAY())-F13<24,5,3)),TRUE)) -> 63 | J13: + | K13: 137.5 | L13: + | M13: 142.5 | N13: × | O13: 145 | P13: 142.5 | Q13: √ | R13: 80 | S13: × | T13: 83 | U13: × | V13: 83 | W13: 80 | X13: √ | Y13: 152.5 | Z13: × | AA13: 155 | AB13: × | AC13: 155 | AD13: 152.5 | AE13: 375 | AF13: 83.251875 | AG13: =IF(OR(H13="",H13=0),0, ROUND(100/(VLOOKUP($G13,'IPF GL Formula'!$A$4:$F$19,3,FALSE)-VLOOKUP($G13,'IPF GL Formula'!$A$4:$F$19,4,FALSE)*EXP(-VLOOKUP($G13,'IPF GL Formula'!$A$4:$F$19,5,FALSE)*H13)),6)) -> 0.222005 | AH13: 1 | AI13: FALSE | AJ13: FALSE | AK13: TRUE | AL13: FALSE | AM13: TRUE | AN13: TRUE | AO13: FALSE | AP13: TRUE | AQ13: TRUE | AR13: FALSE | AS13: FALSE | AT13: FALSE | AU13: FALSE
A14: 1 | B14: Op | C14: Weber | D14: Elyna | E14: Silverbacks | F14: 1997 | G14: F-CL-PL | H14: 82.83 | I14: =IF(H14="","",VLOOKUP(H14,WeightClasses!$A$2:$E$18,IF(LEFT(G14,1)="F",IF(YEAR(TODAY())-F14<24,4,2),IF(YEAR(TODAY())-F14<24,5,3)),TRUE)) -> 84 | J14: √ | K14: 135 | L14: √ | M14: 142.5 | N14: × | O14: 147.5 | P14: 142.5 | Q14: √ | R14: 77.5 | S14: √ | T14: 82.5 | U14: √ | V14: 85 | W14: 85 | X14: √ | Y14: 145 | Z14: √ | AA14: 152.5 | AB14: √ | AC14: 160 | AD14: 160 | AE14: 387.5 | AF14: =IF(AND(AE14<>"",ISNUMBER(AE14)),AG14*AE14,"") -> 73.5866375 | AG14: =IF(OR(H14="",H14=0),0, ROUND(100/(VLOOKUP($G14,'IPF GL Formula'!$A$4:$F$19,3,FALSE)-VLOOKUP($G14,'IPF GL Formula'!$A$4:$F$19,4,FALSE)*EXP(-VLOOKUP($G14,'IPF GL Formula'!$A$4:$F$19,5,FALSE)*H14)),6)) -> 0.189901 | AI14: FALSE | AJ14: FALSE | AK14: TRUE | AL14: FALSE | AM14: FALSE | AN14: FALSE | AO14: FALSE | AP14: FALSE | AQ14: FALSE | AR14: FALSE | AS14: FALSE | AT14: FALSE | AU14: FALSE
A15: 1 | B15: Op | C15: Ewert | D15: Manuela | E15: Silverbacks | F15: 1995 | G15: F-CL-PL | H15: 82.52 | I15: =IF(H15="","",VLOOKUP(H15,WeightClasses!$A$2:$E$18,IF(LEFT(G15,1)="F",IF(YEAR(TODAY())-F15<24,4,2),IF(YEAR(TODAY())-F15<24,5,3)),TRUE)) -> 84 | J15: √ | K15: 135 | L15: √ | M15: 142.5 | N15: × | O15: 147.5 | P15: 142.5 | Q15: √ | R15: 55 | S15: √ | T15: 60 | U15: √ | V15: 62.5 | W15: 62.5 | X15: √ | Y15: 145 | Z15: √ | AA15: 155 | AB15: × | AC15: 160 | AD15: 155 | AE15: 360 | AF15: =IF(AND(AE15<>"",ISNUMBER(AE15)),AG15*AE15,"") -> 68.46768 | AG15: =IF(OR(H15="",H15=0),0, ROUND(100/(VLOOKUP($G15,'IPF GL Formula'!$A$4:$F$19,3,FALSE)-VLOOKUP($G15,'IPF GL Formula'!$A$4:$F$19,4,FALSE)*EXP(-VLOOKUP($G15,'IPF GL Formula'!$A$4:$F$19,5,FALSE)*H15)),6)) -> 0.190188 | AI15: FALSE | AJ15: FALSE | AK15: TRUE | AL15: FALSE | AM15: FALSE | AN15: FALSE | AO15: FALSE | AP15: FALSE | AQ15: TRUE | AR15: FALSE | AS15: FALSE | AT15: FALSE | AU15: FALSE
I16: =IF(H16="","",VLOOKUP(H16,WeightClasses!$A$2:$E$18,IF(LEFT(G16,1)="F",IF(YEAR(TODAY())-F16<24,4,2),IF(YEAR(TODAY())-F16<24,5,3)),TRUE)) ->  | AF16: =SUM(AF12:AF15) -> 286.779935 | AG16: =IF(OR(H16="",H16=0),0, ROUND(100/(VLOOKUP($G16,'IPF GL Formula'!$A$4:$F$19,3,FALSE)-VLOOKUP($G16,'IPF GL Formula'!$A$4:$F$19,4,FALSE)*EXP(-VLOOKUP($G16,'IPF GL Formula'!$A$4:$F$19,5,FALSE)*H16)),6)) -> 0 | AH16: 1 | AI16: FALSE | AJ16: FALSE | AK16: FALSE | AL16: FALSE | AM16: FALSE | AN16: FALSE | AO16: FALSE | AP16: FALSE | AQ16: FALSE | AR16: FALSE | AS16: FALSE | AT16: FALSE | AU16: FALSE
A17: 2 | B17: Sj | C17: Best | D17: Jonah | E17: SC Hamm | F17: 2009 | G17: M-CL-PL | H17: 60.74 | I17: =IF(H17="","",VLOOKUP(H17,WeightClasses!$A$2:$E$18,IF(LEFT(G17,1)="F",IF(YEAR(TODAY())-F17<24,4,2),IF(YEAR(TODAY())-F17<24,5,3)),TRUE)) -> 66 | J17: √ | K17: 95 | L17: √ | M17: 102.5 | N17: √ | O17: 110 | P17: 110 | Q17: √ | R17: 65 | S17: √ | T17: 72.5 | U17: × | V17: 77.5 | W17: 72.5 | X17: √ | Y17: 115 | Z17: √ | AA17: 125 | AB17: √ | AC17: 135 | AD17: 135 | AE17: 317.5 | AF17: 51.7274175 | AG17: =IF(OR(H17="",H17=0),0, ROUND(100/(VLOOKUP($G17,'IPF GL Formula'!$A$4:$F$19,3,FALSE)-VLOOKUP($G17,'IPF GL Formula'!$A$4:$F$19,4,FALSE)*EXP(-VLOOKUP($G17,'IPF GL Formula'!$A$4:$F$19,5,FALSE)*H17)),6)) -> 0.162921 | AI17: FALSE | AJ17: FALSE | AK17: FALSE | AL17: FALSE | AM17: FALSE | AN17: TRUE | AO17: FALSE | AP17: FALSE | AQ17: FALSE | AR17: FALSE | AS17: FALSE | AT17: FALSE | AU17: FALSE
A18: 2 | B18: Sj | C18: Vicente Santana | D18: Thomas | E18: SC Hamm | F18: 2006 | G18: M-CL-PL | H18: 75.73 | I18: =IF(H18="","",VLOOKUP(H18,WeightClasses!$A$2:$E$18,IF(LEFT(G18,1)="F",IF(YEAR(TODAY())-F18<24,4,2),IF(YEAR(TODAY())-F18<24,5,3)),TRUE)) -> 83 | J18: √ | K18: 180 | L18: + | M18: 192.5 | N18: + | O18: 200 | P18: 200 | Q18: + | R18: 135 | S18: + | T18: 137.5 | U18: + | V18: 140 | W18: 140 | X18: √ | Y18: 207.5 | Z18: + | AA18: 220.5 | AB18: × | AC18: 225 | AD18: 220.5 | AE18: 560.5 | AF18: 81.308372 | AG18: =IF(OR(H18="",H18=0),0, ROUND(100/(VLOOKUP($G18,'IPF GL Formula'!$A$4:$F$19,3,FALSE)-VLOOKUP($G18,'IPF GL Formula'!$A$4:$F$19,4,FALSE)*EXP(-VLOOKUP($G18,'IPF GL Formula'!$A$4:$F$19,5,FALSE)*H18)),6)) -> 0.145064 | AI18: FALSE | AJ18: FALSE | AK18: FALSE | AL18: FALSE | AM18: FALSE | AN18: FALSE | AO18: FALSE | AP18: FALSE | AQ18: TRUE | AR18: FALSE | AS18: FALSE | AT18: FALSE | AU18: FALSE
A19: 2 | B19: Sj | C19: Ferreira | D19: Aaron | E19: SC Hamm | F19: 2006 | G19: M-CL-PL | H19: 114.08 | I19: =IF(H19="","",VLOOKUP(H19,WeightClasses!$A$2:$E$18,IF(LEFT(G19,1)="F",IF(YEAR(TODAY())-F19<24,4,2),IF(YEAR(TODAY())-F19<24,5,3)),TRUE)) -> 120 | J19: √ | K19: 195 | L19: √ | M19: 207.5 | N19: × | O19: 212.5 | P19: 207.5 | Q19: √ | R19: 130 | S19: √ | T19: 137.5 | U19: × | V19: 140 | W19: 137.5 | X19: √ | Y19: 195 | Z19: √ | AA19: 210 | AB19: √ | AC19: 220 | AD19: 220 | AE19: 565 | AF19: 67.164375 | AG19: =IF(OR(H19="",H19=0),0, ROUND(100/(VLOOKUP($G19,'IPF GL Formula'!$A$4:$F$19,3,FALSE)-VLOOKUP($G19,'IPF GL Formula'!$A$4:$F$19,4,FALSE)*EXP(-VLOOKUP($G19,'IPF GL Formula'!$A$4:$F$19,5,FALSE)*H19)),6)) -> 0.118875 | AI19: FALSE | AJ19: FALSE | AK19: TRUE | AL19: FALSE | AM19: FALSE | AN19: TRUE | AO19: FALSE | AP19: FALSE | AQ19: FALSE | AR19: FALSE | AS19: FALSE | AT19: FALSE | AU19: FALSE
A20: 2 | B20: Jr | C20: Scheepers | D20: Ethan | E20: SC Hamm | F20: 2005 | G20: M-CL-PL | H20: 73.02 | I20: =IF(H20="","",VLOOKUP(H20,WeightClasses!$A$2:$E$18,IF(LEFT(G20,1)="F",IF(YEAR(TODAY())-F20<24,4,2),IF(YEAR(TODAY())-F20<24,5,3)),TRUE)) -> 74 | J20: √ | K20: 155 | L20: √ | M20: 162.5 | N20: × | O20: 170 | P20: 162.5 | Q20: √ | R20: 95 | S20: √ | T20: 100 | U20: √ | V20: 105 | W20: 105 | X20: √ | Y20: 195 | Z20: √ | AA20: 210 | AB20: + | AC20: 214.5 | AD20: 214.5 | AE20: 482 | AF20: 71.25406 | AG20: =IF(OR(H20="",H20=0),0, ROUND(100/(VLOOKUP($G20,'IPF GL Formula'!$A$4:$F$19,3,FALSE)-VLOOKUP($G20,'IPF GL Formula'!$A$4:$F$19,4,FALSE)*EXP(-VLOOKUP($G20,'IPF GL Formula'!$A$4:$F$19,5,FALSE)*H20)),6)) -> 0.14783 | AI20: FALSE | AJ20: FALSE | AK20: TRUE | AL20: FALSE | AM20: FALSE | AN20: FALSE | AO20: FALSE | AP20: FALSE | AQ20: FALSE | AR20: FALSE | AS20: FALSE | AT20: FALSE | AU20: FALSE
A21: 2 | B21: Jr | C21: Toth | D21: Bela | E21: SC Hamm | F21: 2005 | G21: M-CL-PL | H21: 78.32 | I21: =IF(H21="","",VLOOKUP(H21,WeightClasses!$A$2:$E$18,IF(LEFT(G21,1)="F",IF(YEAR(TODAY())-F21<24,4,2),IF(YEAR(TODAY())-F21<24,5,3)),TRUE)) -> 83 | J21: √ | K21: 120 | L21: √ | M21: 130 | N21: √ | O21: 140 | P21: 140 | Q21: √ | R21: 90 | S21: √ | T21: 95 | U21: √ | V21: 100 | W21: 100 | X21: √ | Y21: 160 | Z21: √ | AA21: 170 | AB21: √ | AC21: 182.5 | AD21: 182.5 | AE21: 422.5 | AF21: 60.23836 | AG21: =IF(OR(H21="",H21=0),0, ROUND(100/(VLOOKUP($G21,'IPF GL Formula'!$A$4:$F$19,3,FALSE)-VLOOKUP($G21,'IPF GL Formula'!$A$4:$F$19,4,FALSE)*EXP(-VLOOKUP($G21,'IPF GL Formula'!$A$4:$F$19,5,FALSE)*H21)),6)) -> 0.142576 | AI21: FALSE | AJ21: FALSE | AK21: FALSE | AL21: FALSE | AM21: FALSE | AN21: FALSE | AO21: FALSE | AP21: FALSE | AQ21: FALSE | AR21: FALSE | AS21: FALSE | AT21: FALSE | AU21: FALSE
A22: 2 | B22: Jr | C22: Feiereisen | D22: Ben | E22: SC Hamm | F22: 2004 | G22: M-CL-PL | H22: 90.47 | I22: =IF(H22="","",VLOOKUP(H22,WeightClasses!$A$2:$E$18,IF(LEFT(G22,1)="F",IF(YEAR(TODAY())-F22<24,4,2),IF(YEAR(TODAY())-F22<24,5,3)),TRUE)) -> 93 | J22: √ | K22: 180 | L22: √ | M22: 187.5 | N22: √ | O22: 192.5 | P22: 192.5 | Q22: √ | R22: 100 | S22: √ | T22: 105 | U22: √ | V22: 107.5 | W22: 107.5 | X22: √ | Y22: 200 | Z22: √ | AA22: 215 | AB22: √ | AC22: 222.5 | AD22: 222.5 | AE22: 522.5 | AF22: 69.2840225 | AG22: =IF(OR(H22="",H22=0),0, ROUND(100/(VLOOKUP($G22,'IPF GL Formula'!$A$4:$F$19,3,FALSE)-VLOOKUP($G22,'IPF GL Formula'!$A$4:$F$19,4,FALSE)*EXP(-VLOOKUP($G22,'IPF GL Formula'!$A$4:$F$19,5,FALSE)*H22)),6)) -> 0.132601 | AI22: FALSE | AJ22: FALSE | AK22: FALSE | AL22: FALSE | AM22: FALSE | AN22: FALSE | AO22: FALSE | AP22: FALSE | AQ22: FALSE | AR22: FALSE | AS22: FALSE | AT22: FALSE | AU22: FALSE
A23: 2 | B23: Jr | C23: Matos Pedroso | D23: Daniel | E23: SC Hamm | F23: 2001 | G23: M-CL-PL | H23: 88.49 | I23: =IF(H23="","",VLOOKUP(H23,WeightClasses!$A$2:$E$18,IF(LEFT(G23,1)="F",IF(YEAR(TODAY())-F23<24,4,2),IF(YEAR(TODAY())-F23<24,5,3)),TRUE)) -> 93 | J23: √ | K23: 170 | L23: √ | M23: 185 | N23: √ | O23: 195 | P23: 195 | Q23: √ | R23: 95 | S23: √ | T23: 102.5 | U23: √ | V23: 107.5 | W23: 107.5 | X23: √ | Y23: 180 | Z23: √ | AA23: 200 | AB23: × | AC23: 210 | AD23: 200 | AE23: 502.5 | AF23: 67.3646475 | AG23: =IF(OR(H23="",H23=0),0, ROUND(100/(VLOOKUP($G23,'IPF GL Formula'!$A$4:$F$19,3,FALSE)-VLOOKUP($G23,'IPF GL Formula'!$A$4:$F$19,4,FALSE)*EXP(-VLOOKUP($G23,'IPF GL Formula'!$A$4:$F$19,5,FALSE)*H23)),6)) -> 0.134059 | AI23: FALSE | AJ23: FALSE | AK23: FALSE | AL23: FALSE | AM23: FALSE | AN23: FALSE | AO23: FALSE | AP23: FALSE | AQ23: TRUE | AR23: FALSE | AS23: FALSE | AT23: FALSE | AU23: FALSE
A24: 2 | B24: Jr | C24: Parage | D24: Philippe | E24: SC Hamm | F24: 2001 | G24: M-CL-PL | H24: 124.02 | I24: =IF(H24="","",VLOOKUP(H24,WeightClasses!$A$2:$E$18,IF(LEFT(G24,1)="F",IF(YEAR(TODAY())-F24<24,4,2),IF(YEAR(TODAY())-F24<24,5,3)),TRUE)) -> 120+ | J24: √ | K24: 270 | L24: √ | M24: 282.5 | N24: + | O24: 290 | P24: 290 | Q24: √ | R24: 160 | S24: × | T24: 165 | U24: × | V24: 165 | W24: 160 | X24: √ | Y24: 275 | Z24: √ | AA24: 285 | AB24: × | AC24: 293 | AD24: 285 | AE24: 735 | AF24: 84.23247 | AG24: =IF(OR(H24="",H24=0),0, ROUND(100/(VLOOKUP($G24,'IPF GL Formula'!$A$4:$F$19,3,FALSE)-VLOOKUP($G24,'IPF GL Formula'!$A$4:$F$19,4,FALSE)*EXP(-VLOOKUP($G24,'IPF GL Formula'!$A$4:$F$19,5,FALSE)*H24)),6)) -> 0.114602 | AI24: FALSE | AJ24: FALSE | AK24: FALSE | AL24: FALSE | AM24: TRUE | AN24: TRUE | AO24: FALSE | AP24: FALSE | AQ24: TRUE | AR24: FALSE | AS24: FALSE | AT24: FALSE | AU24: FALSE
A25: 3 | B25: Op | C25: Nilles | D25: Kevin | E25: SC Hamm | F25: 1998 | G25: M-CL-PL | H25: 68.58 | I25: =IF(H25="","",VLOOKUP(H25,WeightClasses!$A$2:$E$18,IF(LEFT(G25,1)="F",IF(YEAR(TODAY())-F25<24,4,2),IF(YEAR(TODAY())-F25<24,5,3)),TRUE)) -> 74 | J25: √ | K25: 177.5 | L25: √ | M25: 187.5 | N25: × | O25: 195.5 | P25: =IF(OR(K25<>0,M25<>0,O25<>0),MAX(IF(OR(J25=$S$1,J25=$S$2),K25,0),IF(OR(L25=$S$1,L25=$S$2),M25,0),IF(OR(N25=$S$1,N25=$S$2),O25,0)),"") -> 187.5 | Q25: √ | R25: 97.5 | S25: × | T25: 102.5 | U25: √ | V25: 102.5 | W25: =IF(OR(R25<>0,T25<>0,V25<>0),MAX(IF(OR(Q25=$S$1,Q25=$S$2),R25,0),IF(OR(S25=$S$1,S25=$S$2),T25,0),IF(OR(U25=$S$1,U25=$S$2),V25,0)),"") -> 102.5 | X25: √ | Y25: 212.5 | Z25: √ | AA25: 220 | AB25: + | AC25: 224 | AD25: =IF(OR(Y25<>0,AA25<>0,AC25<>0),MAX(IF(OR(X25=$S$1,X25=$S$2),Y25,0),IF(OR(Z25=$S$1,Z25=$S$2),AA25,0),IF(OR(AB25=$S$1,AB25=$S$2),AC25,0)),"") -> 224 | AE25: =IF(OR(P25<>"",W25<>"",AD25<>""),IF(AU25,"DSQ",IF(AND(RIGHT(G25,2)="PL"),IF(P25="",0,P25)+IF(W25="",0,W25)+IF(AD25="",0,AD25),IF(AND(RIGHT(G25,2)="BP",W25<>0),W25,IF(AND(RIGHT(G25,2)="DL",AD25<>0),AD25,IF(AND(RIGHT(G25,2)="SQ",P25<>0),P25,0))))),"") -> 514 | AF25: =IF(AND(AE25<>"",ISNUMBER(AE25)),AG25*AE25,"") -> 78.520182 | AG25: =IF(OR(H25="",H25=0),0, ROUND(100/(VLOOKUP($G25,'IPF GL Formula'!$A$4:$F$19,3,FALSE)-VLOOKUP($G25,'IPF GL Formula'!$A$4:$F$19,4,FALSE)*EXP(-VLOOKUP($G25,'IPF GL Formula'!$A$4:$F$19,5,FALSE)*H25)),6)) -> 0.152763 | AI25: =J25=$S$3 -> FALSE | AJ25: =L25=$S$3 -> FALSE | AK25: =N25=$S$3 -> TRUE | AL25: =Q25=$S$3 -> FALSE | AM25: =S25=$S$3 -> TRUE | AN25: =U25=$S$3 -> FALSE | AO25: =X25=$S$3 -> FALSE | AP25: =Z25=$S$3 -> FALSE | AQ25: =AB25=$S$3 -> FALSE | AR25: =AND(AI25,AJ25,AK25) -> FALSE | AS25: =AND(AL25,AM25,AN25) -> FALSE | AT25: =AND(AO25,AP25,AQ25) -> FALSE | AU25: =OR(AR25,AS25,AT25) -> FALSE
A26: 3 | B26: Op | C26: Ndoja | D26: Gabriel | E26: SC Hamm | F26: 1995 | G26: M-EQ-PL | H26: 119.45 | I26: =IF(H26="","",VLOOKUP(H26,WeightClasses!$A$2:$E$18,IF(LEFT(G26,1)="F",IF(YEAR(TODAY())-F26<24,4,2),IF(YEAR(TODAY())-F26<24,5,3)),TRUE)) -> 120 | J26: √ | K26: 255 | L26: √ | M26: 265 | N26: × | O26: 270 | P26: =IF(OR(K26<>0,M26<>0,O26<>0),MAX(IF(OR(J26=$S$1,J26=$S$2),K26,0),IF(OR(L26=$S$1,L26=$S$2),M26,0),IF(OR(N26=$S$1,N26=$S$2),O26,0)),"") -> 265 | Q26: √ | R26: 175 | S26: √ | T26: 180 | U26: √ | V26: 185 | W26: =IF(OR(R26<>0,T26<>0,V26<>0),MAX(IF(OR(Q26=$S$1,Q26=$S$2),R26,0),IF(OR(S26=$S$1,S26=$S$2),T26,0),IF(OR(U26=$S$1,U26=$S$2),V26,0)),"") -> 185 | X26: √ | Y26: 250 | Z26: √ | AA26: 260 | AB26: × | AC26: 0 | AD26: =IF(OR(Y26<>0,AA26<>0,AC26<>0),MAX(IF(OR(X26=$S$1,X26=$S$2),Y26,0),IF(OR(Z26=$S$1,Z26=$S$2),AA26,0),IF(OR(AB26=$S$1,AB26=$S$2),AC26,0)),"") -> 260 | AE26: =IF(OR(P26<>"",W26<>"",AD26<>""),IF(AU26,"DSQ",IF(AND(RIGHT(G26,2)="PL"),IF(P26="",0,P26)+IF(W26="",0,W26)+IF(AD26="",0,AD26),IF(AND(RIGHT(G26,2)="BP",W26<>0),W26,IF(AND(RIGHT(G26,2)="DL",AD26<>0),AD26,IF(AND(RIGHT(G26,2)="SQ",P26<>0),P26,0))))),"") -> 710 | AF26: =IF(AND(AE26<>"",ISNUMBER(AE26)),AG26*AE26,"") -> 68.73936 | AG26: =IF(OR(H26="",H26=0),0, ROUND(100/(VLOOKUP($G26,'IPF GL Formula'!$A$4:$F$19,3,FALSE)-VLOOKUP($G26,'IPF GL Formula'!$A$4:$F$19,4,FALSE)*EXP(-VLOOKUP($G26,'IPF GL Formula'!$A$4:$F$19,5,FALSE)*H26)),6)) -> 0.096816 | AI26: =J26=$S$3 -> FALSE | AJ26: =L26=$S$3 -> FALSE | AK26: =N26=$S$3 -> TRUE | AL26: =Q26=$S$3 -> FALSE | AM26: =S26=$S$3 -> FALSE | AN26: =U26=$S$3 -> FALSE | AO26: =X26=$S$3 -> FALSE | AP26: =Z26=$S$3 -> FALSE | AQ26: =AB26=$S$3 -> TRUE | AR26: =AND(AI26,AJ26,AK26) -> FALSE | AS26: =AND(AL26,AM26,AN26) -> FALSE | AT26: =AND(AO26,AP26,AQ26) -> FALSE | AU26: =OR(AR26,AS26,AT26) -> FALSE
A27: 3 | B27: Jr | C27: Pouanouko | D27: Issah | E27: SC Hamm | F27: 2001 | G27: M-CL-PL | H27: 94.69 | I27: =IF(H27="","",VLOOKUP(H27,WeightClasses!$A$2:$E$18,IF(LEFT(G27,1)="F",IF(YEAR(TODAY())-F27<24,4,2),IF(YEAR(TODAY())-F27<24,5,3)),TRUE)) -> 105 | J27: √ | K27: 217.5 | L27: √ | M27: 230 | N27: √ | O27: 235 | P27: 235 | Q27: √ | R27: 142.5 | S27: √ | T27: 150 | U27: × | V27: 152.5 | W27: 150 | X27: √ | Y27: 230 | Z27: √ | AA27: 245 | AB27: √ | AC27: 252.5 | AD27: 252.5 | AE27: 637.5 | AF27: 82.6716375 | AG27: =IF(OR(H27="",H27=0),0, ROUND(100/(VLOOKUP($G27,'IPF GL Formula'!$A$4:$F$19,3,FALSE)-VLOOKUP($G27,'IPF GL Formula'!$A$4:$F$19,4,FALSE)*EXP(-VLOOKUP($G27,'IPF GL Formula'!$A$4:$F$19,5,FALSE)*H27)),6)) -> 0.129681 | AI27: FALSE | AJ27: FALSE | AK27: FALSE | AL27: FALSE | AM27: FALSE | AN27: TRUE | AO27: FALSE | AP27: FALSE | AQ27: FALSE | AR27: FALSE | AS27: FALSE | AT27: FALSE | AU27: FALSE
I28: =IF(H28="","",VLOOKUP(H28,WeightClasses!$A$2:$E$18,IF(LEFT(G28,1)="F",IF(YEAR(TODAY())-F28<24,4,2),IF(YEAR(TODAY())-F28<24,5,3)),TRUE)) ->  | P28: =IF(OR(K28<>0,M28<>0,O28<>0),MAX(IF(OR(J28=$S$1,J28=$S$2),K28,0),IF(OR(L28=$S$1,L28=$S$2),M28,0),IF(OR(N28=$S$1,N28=$S$2),O28,0)),"") ->  | W28: =IF(OR(R28<>0,T28<>0,V28<>0),MAX(IF(OR(Q28=$S$1,Q28=$S$2),R28,0),IF(OR(S28=$S$1,S28=$S$2),T28,0),IF(OR(U28=$S$1,U28=$S$2),V28,0)),"") ->  | AD28: =IF(OR(Y28<>0,AA28<>0,AC28<>0),MAX(IF(OR(X28=$S$1,X28=$S$2),Y28,0),IF(OR(Z28=$S$1,Z28=$S$2),AA28,0),IF(OR(AB28=$S$1,AB28=$S$2),AC28,0)),"") ->  | AE28: =IF(OR(P28<>"",W28<>"",AD28<>""),IF(AU28,"DSQ",IF(AND(RIGHT(G28,2)="PL"),IF(P28="",0,P28)+IF(W28="",0,W28)+IF(AD28="",0,AD28),IF(AND(RIGHT(G28,2)="BP",W28<>0),W28,IF(AND(RIGHT(G28,2)="DL",AD28<>0),AD28,IF(AND(RIGHT(G28,2)="SQ",P28<>0),P28,0))))),"") ->  | AF28: =AF27+AF25+AF24+AF20+AF18 -> 397.9867215 | AG28: =IF(OR(H28="",H28=0),0, ROUND(100/(VLOOKUP($G28,'IPF GL Formula'!$A$4:$F$19,3,FALSE)-VLOOKUP($G28,'IPF GL Formula'!$A$4:$F$19,4,FALSE)*EXP(-VLOOKUP($G28,'IPF GL Formula'!$A$4:$F$19,5,FALSE)*H28)),6)) -> 0 | AH28: 1 | AI28: =J28=$S$3 -> FALSE | AJ28: =L28=$S$3 -> FALSE | AK28: =N28=$S$3 -> FALSE | AL28: =Q28=$S$3 -> FALSE | AM28: =S28=$S$3 -> FALSE | AN28: =U28=$S$3 -> FALSE | AO28: =X28=$S$3 -> FALSE | AP28: =Z28=$S$3 -> FALSE | AQ28: =AB28=$S$3 -> FALSE | AR28: =AND(AI28,AJ28,AK28) -> FALSE | AS28: =AND(AL28,AM28,AN28) -> FALSE | AT28: =AND(AO28,AP28,AQ28) -> FALSE | AU28: =OR(AR28,AS28,AT28) -> FALSE
A29: 2 | B29: Jr | C29: Brazas | D29: Konstantinas | E29: Silverbacks | F29: 2004 | G29: M-CL-PL | H29: 90.1 | I29: =IF(H29="","",VLOOKUP(H29,WeightClasses!$A$2:$E$18,IF(LEFT(G29,1)="F",IF(YEAR(TODAY())-F29<24,4,2),IF(YEAR(TODAY())-F29<24,5,3)),TRUE)) -> 93 | J29: √ | K29: 175 | L29: √ | M29: 185 | N29: √ | O29: 190 | P29: 190 | Q29: √ | R29: 105 | S29: √ | T29: 110 | U29: × | V29: 0 | W29: 110 | X29: √ | Y29: 185 | Z29: √ | AA29: 192.5 | AB29: × | AC29: 200 | AD29: 192.5 | AE29: 492.5 | AF29: =IF(AND(AE29<>"",ISNUMBER(AE29)),AG29*AE29,"") -> 65.4379825 | AG29: =IF(OR(H29="",H29=0),0, ROUND(100/(VLOOKUP($G29,'IPF GL Formula'!$A$4:$F$19,3,FALSE)-VLOOKUP($G29,'IPF GL Formula'!$A$4:$F$19,4,FALSE)*EXP(-VLOOKUP($G29,'IPF GL Formula'!$A$4:$F$19,5,FALSE)*H29)),6)) -> 0.132869 | AI29: FALSE | AJ29: FALSE | AK29: FALSE | AL29: FALSE | AM29: FALSE | AN29: TRUE | AO29: FALSE | AP29: FALSE | AQ29: TRUE | AR29: FALSE | AS29: FALSE | AT29: FALSE | AU29: FALSE
A30: 3 | B30: Op | C30: Macchi | D30: Mirko | E30: Silverbacks | F30: 1998 | G30: M-CL-PL | H30: 82.58 | I30: =IF(H30="","",VLOOKUP(H30,WeightClasses!$A$2:$E$18,IF(LEFT(G30,1)="F",IF(YEAR(TODAY())-F30<24,4,2),IF(YEAR(TODAY())-F30<24,5,3)),TRUE)) -> 83 | J30: √ | K30: 215 | L30: √ | M30: 225 | N30: √ | O30: 230 | P30: 230 | Q30: √ | R30: 155 | S30: × | T30: 162.5 | U30: × | V30: 162.5 | W30: 155 | X30: √ | Y30: 270 | Z30: √ | AA30: 285 | AB30: × | AC30: 300 | AD30: 285 | AE30: 670 | AF30: 92.98394 | AG30: =IF(OR(H30="",H30=0),0, ROUND(100/(VLOOKUP($G30,'IPF GL Formula'!$A$4:$F$19,3,FALSE)-VLOOKUP($G30,'IPF GL Formula'!$A$4:$F$19,4,FALSE)*EXP(-VLOOKUP($G30,'IPF GL Formula'!$A$4:$F$19,5,FALSE)*H30)),6)) -> 0.138782 | AH30: 1 | AI30: FALSE | AJ30: FALSE | AK30: FALSE | AL30: FALSE | AM30: TRUE | AN30: TRUE | AO30: FALSE | AP30: FALSE | AQ30: TRUE | AR30: FALSE | AS30: FALSE | AT30: FALSE | AU30: FALSE
A31: 3 | B31: Op | C31: Tavares | D31: Dylan | E31: Silverbacks | F31: 1995 | G31: M-CL-PL | H31: 92.8 | I31: =IF(H31="","",VLOOKUP(H31,WeightClasses!$A$2:$E$18,IF(LEFT(G31,1)="F",IF(YEAR(TODAY())-F31<24,4,2),IF(YEAR(TODAY())-F31<24,5,3)),TRUE)) -> 93 | J31: √ | K31: 165 | L31: √ | M31: 175 | N31: √ | O31: 187.5 | P31: =IF(OR(K31<>0,M31<>0,O31<>0),MAX(IF(OR(J31=$S$1,J31=$S$2),K31,0),IF(OR(L31=$S$1,L31=$S$2),M31,0),IF(OR(N31=$S$1,N31=$S$2),O31,0)),"") -> 187.5 | Q31: √ | R31: 105 | S31: √ | T31: 115 | U31: × | V31: 120 | W31: =IF(OR(R31<>0,T31<>0,V31<>0),MAX(IF(OR(Q31=$S$1,Q31=$S$2),R31,0),IF(OR(S31=$S$1,S31=$S$2),T31,0),IF(OR(U31=$S$1,U31=$S$2),V31,0)),"") -> 115 | X31: √ | Y31: 240 | Z31: √ | AA31: 270 | AB31: × | AC31: 288 | AD31: =IF(OR(Y31<>0,AA31<>0,AC31<>0),MAX(IF(OR(X31=$S$1,X31=$S$2),Y31,0),IF(OR(Z31=$S$1,Z31=$S$2),AA31,0),IF(OR(AB31=$S$1,AB31=$S$2),AC31,0)),"") -> 270 | AE31: =IF(OR(P31<>"",W31<>"",AD31<>""),IF(AU31,"DSQ",IF(AND(RIGHT(G31,2)="PL"),IF(P31="",0,P31)+IF(W31="",0,W31)+IF(AD31="",0,AD31),IF(AND(RIGHT(G31,2)="BP",W31<>0),W31,IF(AND(RIGHT(G31,2)="DL",AD31<>0),AD31,IF(AND(RIGHT(G31,2)="SQ",P31<>0),P31,0))))),"") -> 572.5 | AF31: =IF(AND(AE31<>"",ISNUMBER(AE31)),AG31*AE31,"") -> 74.9740275 | AG31: =IF(OR(H31="",H31=0),0, ROUND(100/(VLOOKUP($G31,'IPF GL Formula'!$A$4:$F$19,3,FALSE)-VLOOKUP($G31,'IPF GL Formula'!$A$4:$F$19,4,FALSE)*EXP(-VLOOKUP($G31,'IPF GL Formula'!$A$4:$F$19,5,FALSE)*H31)),6)) -> 0.130959 | AI31: =J31=$S$3 -> FALSE | AJ31: =L31=$S$3 -> FALSE | AK31: =N31=$S$3 -> FALSE | AL31: =Q31=$S$3 -> FALSE | AM31: =S31=$S$3 -> FALSE | AN31: =U31=$S$3 -> TRUE | AO31: =X31=$S$3 -> FALSE | AP31: =Z31=$S$3 -> FALSE | AQ31: =AB31=$S$3 -> TRUE | AR31: =AND(AI31,AJ31,AK31) -> FALSE | AS31: =AND(AL31,AM31,AN31) -> FALSE | AT31: =AND(AO31,AP31,AQ31) -> FALSE | AU31: =OR(AR31,AS31,AT31) -> FALSE
A32: 3 | B32: Op | C32: Loconte | D32: Sebastiano | E32: Silverbacks | F32: 1996 | G32: M-CL-PL | H32: 90.05 | I32: =IF(H32="","",VLOOKUP(H32,WeightClasses!$A$2:$E$18,IF(LEFT(G32,1)="F",IF(YEAR(TODAY())-F32<24,4,2),IF(YEAR(TODAY())-F32<24,5,3)),TRUE)) -> 93 | J32: √ | K32: 175 | L32: √ | M32: 182.5 | N32: √ | O32: 190 | P32: =IF(OR(K32<>0,M32<>0,O32<>0),MAX(IF(OR(J32=$S$1,J32=$S$2),K32,0),IF(OR(L32=$S$1,L32=$S$2),M32,0),IF(OR(N32=$S$1,N32=$S$2),O32,0)),"") -> 190 | Q32: √ | R32: 120 | S32: √ | T32: 125 | U32: √ | V32: 130 | W32: =IF(OR(R32<>0,T32<>0,V32<>0),MAX(IF(OR(Q32=$S$1,Q32=$S$2),R32,0),IF(OR(S32=$S$1,S32=$S$2),T32,0),IF(OR(U32=$S$1,U32=$S$2),V32,0)),"") -> 130 | X32: √ | Y32: 190 | Z32: √ | AA32: 200 | AB32: × | AC32: 205 | AD32: =IF(OR(Y32<>0,AA32<>0,AC32<>0),MAX(IF(OR(X32=$S$1,X32=$S$2),Y32,0),IF(OR(Z32=$S$1,Z32=$S$2),AA32,0),IF(OR(AB32=$S$1,AB32=$S$2),AC32,0)),"") -> 200 | AE32: =IF(OR(P32<>"",W32<>"",AD32<>""),IF(AU32,"DSQ",IF(AND(RIGHT(G32,2)="PL"),IF(P32="",0,P32)+IF(W32="",0,W32)+IF(AD32="",0,AD32),IF(AND(RIGHT(G32,2)="BP",W32<>0),W32,IF(AND(RIGHT(G32,2)="DL",AD32<>0),AD32,IF(AND(RIGHT(G32,2)="SQ",P32<>0),P32,0))))),"") -> 520 | AF32: =IF(AND(AE32<>"",ISNUMBER(AE32)),AG32*AE32,"") -> 69.11112 | AG32: =IF(OR(H32="",H32=0),0, ROUND(100/(VLOOKUP($G32,'IPF GL Formula'!$A$4:$F$19,3,FALSE)-VLOOKUP($G32,'IPF GL Formula'!$A$4:$F$19,4,FALSE)*EXP(-VLOOKUP($G32,'IPF GL Formula'!$A$4:$F$19,5,FALSE)*H32)),6)) -> 0.132906 | AI32: =J32=$S$3 -> FALSE | AJ32: =L32=$S$3 -> FALSE | AK32: =N32=$S$3 -> FALSE | AL32: =Q32=$S$3 -> FALSE | AM32: =S32=$S$3 -> FALSE | AN32: =U32=$S$3 -> FALSE | AO32: =X32=$S$3 -> FALSE | AP32: =Z32=$S$3 -> FALSE | AQ32: =AB32=$S$3 -> TRUE | AR32: =AND(AI32,AJ32,AK32) -> FALSE | AS32: =AND(AL32,AM32,AN32) -> FALSE | AT32: =AND(AO32,AP32,AQ32) -> FALSE | AU32: =OR(AR32,AS32,AT32) -> FALSE
A33: 3 | B33: Op | C33: Gasparro | D33: Tiziano | E33: Silverbacks | F33: 1978 | G33: M-CL-PL | H33: 99.4 | I33: =IF(H33="","",VLOOKUP(H33,WeightClasses!$A$2:$E$18,IF(LEFT(G33,1)="F",IF(YEAR(TODAY())-F33<24,4,2),IF(YEAR(TODAY())-F33<24,5,3)),TRUE)) -> 105 | J33: √ | K33: 200 | L33: √ | M33: 212.5 | N33: × | O33: 225 | P33: 212.5 | Q33: √ | R33: 132.5 | S33: √ | T33: 137.5 | U33: √ | V33: 142.5 | W33: 142.5 | X33: √ | Y33: 200 | Z33: √ | AA33: 207.5 | AB33: × | AC33: 210 | AD33: 207.5 | AE33: 562.5 | AF33: 71.2636875 | AG33: =IF(OR(H33="",H33=0),0, ROUND(100/(VLOOKUP($G33,'IPF GL Formula'!$A$4:$F$19,3,FALSE)-VLOOKUP($G33,'IPF GL Formula'!$A$4:$F$19,4,FALSE)*EXP(-VLOOKUP($G33,'IPF GL Formula'!$A$4:$F$19,5,FALSE)*H33)),6)) -> 0.126691 | AI33: FALSE | AJ33: FALSE | AK33: TRUE | AL33: FALSE | AM33: FALSE | AN33: FALSE | AO33: FALSE | AP33: FALSE | AQ33: TRUE | AR33: FALSE | AS33: FALSE | AT33: FALSE | AU33: FALSE
A34: 3 | B34: M1 | C34: Bomfina | D34: Joao | E34: Silverbacks | F34: 1978 | G34: M-CL-PL | H34: 93.07 | I34: =IF(H34="","",VLOOKUP(H34,WeightClasses!$A$2:$E$18,IF(LEFT(G34,1)="F",IF(YEAR(TODAY())-F34<24,4,2),IF(YEAR(TODAY())-F34<24,5,3)),TRUE)) -> 105 | J34: √ | K34: 170 | L34: √ | M34: 182.5 | N34: √ | O34: 190 | P34: 190 | Q34: √ | R34: 95 | S34: × | T34: 100 | U34: × | V34: 102.5 | W34: 95 | X34: √ | Y34: 180 | Z34: √ | AA34: 195 | AB34: √ | AC34: 207.5 | AD34: 207.5 | AE34: 492.5 | AF34: 64.4057025 | AG34: =IF(OR(H34="",H34=0),0, ROUND(100/(VLOOKUP($G34,'IPF GL Formula'!$A$4:$F$19,3,FALSE)-VLOOKUP($G34,'IPF GL Formula'!$A$4:$F$19,4,FALSE)*EXP(-VLOOKUP($G34,'IPF GL Formula'!$A$4:$F$19,5,FALSE)*H34)),6)) -> 0.130773 | AI34: FALSE | AJ34: FALSE | AK34: FALSE | AL34: FALSE | AM34: TRUE | AN34: TRUE | AO34: FALSE | AP34: FALSE | AQ34: FALSE | AR34: FALSE | AS34: FALSE | AT34: FALSE | AU34: FALSE
A35: 3 | B35: M2 | C35: Matt | D35: Vincent | E35: Silverbacks | F35: 1967 | G35: M-CL-PL | H35: 102.65 | I35: =IF(H35="","",VLOOKUP(H35,WeightClasses!$A$2:$E$18,IF(LEFT(G35,1)="F",IF(YEAR(TODAY())-F35<24,4,2),IF(YEAR(TODAY())-F35<24,5,3)),TRUE)) -> 105 | J35: √ | K35: 80 | L35: × | M35: 0 | N35: × | O35: 0 | P35: 80 | Q35: √ | R35: 150 | S35: + | T35: 157.5 | U35: × | V35: 160 | W35: 157.5 | X35: √ | Y35: 135 | Z35: × | AA35: 0 | AB35: × | AC35: 0 | AD35: 135 | AE35: 372.5 | AF35: 46.479805 | AG35: =IF(OR(H35="",H35=0),0, ROUND(100/(VLOOKUP($G35,'IPF GL Formula'!$A$4:$F$19,3,FALSE)-VLOOKUP($G35,'IPF GL Formula'!$A$4:$F$19,4,FALSE)*EXP(-VLOOKUP($G35,'IPF GL Formula'!$A$4:$F$19,5,FALSE)*H35)),6)) -> 0.124778 | AI35: FALSE | AJ35: TRUE | AK35: TRUE | AL35: FALSE | AM35: FALSE | AN35: TRUE | AO35: FALSE | AP35: TRUE | AQ35: TRUE | AR35: FALSE | AS35: FALSE | AT35: FALSE | AU35: FALSE
I36: =IF(H36="","",VLOOKUP(H36,WeightClasses!$A$2:$E$18,IF(LEFT(G36,1)="F",IF(YEAR(TODAY())-F36<24,4,2),IF(YEAR(TODAY())-F36<24,5,3)),TRUE)) ->  | P36: =IF(OR(K36<>0,M36<>0,O36<>0),MAX(IF(OR(J36=$S$1,J36=$S$2),K36,0),IF(OR(L36=$S$1,L36=$S$2),M36,0),IF(OR(N36=$S$1,N36=$S$2),O36,0)),"") ->  | W36: =IF(OR(R36<>0,T36<>0,V36<>0),MAX(IF(OR(Q36=$S$1,Q36=$S$2),R36,0),IF(OR(S36=$S$1,S36=$S$2),T36,0),IF(OR(U36=$S$1,U36=$S$2),V36,0)),"") ->  | AD36: =IF(OR(Y36<>0,AA36<>0,AC36<>0),MAX(IF(OR(X36=$S$1,X36=$S$2),Y36,0),IF(OR(Z36=$S$1,Z36=$S$2),AA36,0),IF(OR(AB36=$S$1,AB36=$S$2),AC36,0)),"") ->  | AE36: =IF(OR(P36<>"",W36<>"",AD36<>""),IF(AU36,"DSQ",IF(AND(RIGHT(G36,2)="PL"),IF(P36="",0,P36)+IF(W36="",0,W36)+IF(AD36="",0,AD36),IF(AND(RIGHT(G36,2)="BP",W36<>0),W36,IF(AND(RIGHT(G36,2)="DL",AD36<>0),AD36,IF(AND(RIGHT(G36,2)="SQ",P36<>0),P36,0))))),"") ->  | AF36: =SUM(AF29:AF33) -> 373.7707575 | AG36: =IF(OR(H36="",H36=0),0, ROUND(100/(VLOOKUP($G36,'IPF GL Formula'!$A$4:$F$19,3,FALSE)-VLOOKUP($G36,'IPF GL Formula'!$A$4:$F$19,4,FALSE)*EXP(-VLOOKUP($G36,'IPF GL Formula'!$A$4:$F$19,5,FALSE)*H36)),6)) -> 0 | AH36: 2 | AI36: =J36=$S$3 -> FALSE | AJ36: =L36=$S$3 -> FALSE | AK36: =N36=$S$3 -> FALSE | AL36: =Q36=$S$3 -> FALSE | AM36: =S36=$S$3 -> FALSE | AN36: =U36=$S$3 -> FALSE | AO36: =X36=$S$3 -> FALSE | AP36: =Z36=$S$3 -> FALSE | AQ36: =AB36=$S$3 -> FALSE | AR36: =AND(AI36,AJ36,AK36) -> FALSE | AS36: =AND(AL36,AM36,AN36) -> FALSE | AT36: =AND(AO36,AP36,AQ36) -> FALSE | AU36: =OR(AR36,AS36,AT36) -> FALSE
I37: =IF(H37="","",VLOOKUP(H37,WeightClasses!$A$2:$E$18,IF(LEFT(G37,1)="F",IF(YEAR(TODAY())-F37<24,4,2),IF(YEAR(TODAY())-F37<24,5,3)),TRUE)) ->  | AG37: =IF(OR(H37="",H37=0),0, ROUND(100/(VLOOKUP($G37,'IPF GL Formula'!$A$4:$F$19,3,FALSE)-VLOOKUP($G37,'IPF GL Formula'!$A$4:$F$19,4,FALSE)*EXP(-VLOOKUP($G37,'IPF GL Formula'!$A$4:$F$19,5,FALSE)*H37)),6)) -> 0 | AI37: FALSE | AJ37: FALSE | AK37: FALSE | AL37: FALSE | AM37: FALSE | AN37: FALSE | AO37: FALSE | AP37: FALSE | AQ37: FALSE | AR37: FALSE | AS37: FALSE | AT37: FALSE | AU37: FALSE
I38: =IF(H38="","",VLOOKUP(H38,WeightClasses!$A$2:$E$18,IF(LEFT(G38,1)="F",IF(YEAR(TODAY())-F38<24,4,2),IF(YEAR(TODAY())-F38<24,5,3)),TRUE)) ->  | AG38: =IF(OR(H38="",H38=0),0, ROUND(100/(VLOOKUP($G38,'IPF GL Formula'!$A$4:$F$19,3,FALSE)-VLOOKUP($G38,'IPF GL Formula'!$A$4:$F$19,4,FALSE)*EXP(-VLOOKUP($G38,'IPF GL Formula'!$A$4:$F$19,5,FALSE)*H38)),6)) -> 0 | AI38: FALSE | AJ38: FALSE | AK38: FALSE | AL38: FALSE | AM38: FALSE | AN38: FALSE | AO38: FALSE | AP38: FALSE | AQ38: FALSE | AR38: FALSE | AS38: FALSE | AT38: FALSE | AU38: FALSE
C40: Side referee | F40: Center referee | I40: Side referee

Sheet Instructions
B2: 1. Enter lifter information into the spreadsheet in the approriate columns. Column titles can be changed or Translated to another language after Unprotecting the Spreadsheet.
C3: A separate Scoresheet can be created for each Men/Women, Classic/Equipped, Powerlifting/Bench Press or they may all be entered on the same scoresheet.
B5: 2. When Birth Year and Body Weight are entered the will automatically determine the correct WT Class.
B7: 3. Any of the 8 IPF GL Formulas can be selected for a lifter. A description of the each formula can be found on the IPF GL Formula sheet. Use the drop down menu in the cell.
C8: Lifter1 in the first row is entered in Female-Classic-Powerlifting. The IPF Formula to calculate her IPF Points is F-CL-PL.
B10: 4. The gray areas contain formulas and information that will be protected when you Protect the spreadsheet
B27: 5. You may unprotect the Scoresheet to use the sort functions in Excel to group competitors by weight class, age division, or IPF GL Formula.
B29: 6. When a lifter completes an attempt, click in the cell next to the weight.
C30: For a Good Lift select √. The cell will turn green. Example: Osmialowski, SQ-1.
C31: For a No Lift select ×. The cell will turn pink with a strikethrough font. Example: Kupperstein, SQ-1.
B46: 7. When Bench Press only lifters complete a successful lift and when 3-Lift competitors achieve a Total, IPF GL Points are automatically computed.
B57: 8. To use the file again, Clear Contents or Delete the information in the areas of the Scoresheet that are not not gray in color - shown below. Or push buttom "Clear All Data" and confirm the deleting.

Sheet IPF GL Formula (hidden)
A1: Reference Values
A3: IPF GL Formula | B3: Description | C3: A | D3: B | E3: C
A4: M-CL-PL | B4: Male Classic 3-Lift | C4: 1199.72839 | D4: 1025.18162 | E4: 0.00921
A5: M-CL-SQ | B5: Male Classic Squat | C5: 491.82394 | D5: 479.13901 | E5: 0.00952
A6: M-CL-BP | B6: Male Classic Bench | C6: 320.98041 | D6: 281.40258 | E6: 0.01008
A7: M-CL-DL | B7: Male Classic DeadLift | C7: 358.44893 | D7: 721.54069 | E7: 0.0317
A8: M-EQ-PL | B8: Male Equipped 3-Lift | C8: 1236.25115 | D8: 1449.21864 | E8: 0.01644
A9: M-EQ-SQ | B9: Male Equipped Squat | C9: 515.91349 | D9: 501.55605 | E9: 0.01251
A10: M-EQ-BP | B10: Male Equipped Bench | C10: 381.22073 | D10: 733.79378 | E10: 0.02398
A11: M-EQ-DL | B11: Male Equipped DeadLift | C11: 373.22847 | D11: 1048.6462 | E11: 0.03609
A12: F-CL-PL | B12: Female Classic 3-Lift | C12: 610.32796 | D12: 1045.59282 | E12: 0.03048
A13: F-CL-SQ | B13: Female Classic Squat | C13: 257.39834 | D13: 381.74159 | E13: 0.02399
A14: F-CL-BP | B14: Female Classic Bench | C14: 142.40398 | D14: 442.52671 | E14: 0.04724
A15: F-CL-DL | B15: Female Classic DeadLift | C15: 238.53237 | D15: 624.9151 | E15: 0.04347
A16: F-EQ-PL | B16: Female Equipped 3-Lift | C16: 758.63878 | D16: 949.31382 | E16: 0.02435
A17: F-EQ-SQ | B17: Female Equipped Squat | C17: 319.90471 | D17: 345.4557 | E17: 0.01994
A18: F-EQ-BP | B18: Female Equipped Bench | C18: 221.82209 | D18: 357.00377 | E18: 0.02937
A19: F-EQ-DL | B19: Female Equipped DeadLift | C19: 245.61376 | D19: 567.83845 | E19: 0.04195

Sheet WeightClasses (hidden)
B1: F | C1: M | D1: F-Jr | E1: M-Jr
A2: 10 | B2: 47 | C2: 59 | D2: 43 | E2: 53
A3: 43.01 | B3: 47 | C3: 59 | D3: 47 | E3: 53
A4: 47.01 | B4: 52 | C4: 59 | D4: 52 | E4: 53
A5: 52.01 | B5: 57 | C5: 59 | D5: 57 | E5: 53
A6: 53.01 | B6: 57 | C6: 59 | D6: 57 | E6: 59
A7: 57.01 | B7: 63 | C7: 59 | D7: 63 | E7: 59
A8: 59.01 | B8: 63 | C8: 66 | D8: 63 | E8: 66
A9: 63.01 | B9: 69 | C9: 66 | D9: 69 | E9: 66
A10: 66.01 | B10: 69 | C10: 74 | D10: 69 | E10: 74
A11: 69.01 | B11: 76 | C11: 74 | D11: 76 | E11: 74
A12: 74.01 | B12: 76 | C12: 83 | D12: 76 | E12: 83
A13: 76.01 | B13: 84 | C13: 83 | D13: 84 | E13: 83
A14: 83.01 | B14: 84 | C14: 93 | D14: 84 | E14: 93
A15: 84.01 | B15: 84+ | C15: 93 | D15: 84+ | E15: 93
A16: 93.01 | B16: 84+ | C16: 105 | D16: 84+ | E16: 105
A17: 105.01 | B17: 84+ | C17: 120 | D17: 84+ | E17: 120
A18: 120.01 | B18: 84+ | C18: 120+ | D18: 84+ | E18: 120+
